[Event "Early-Titled-Tuesday-Blitz-May-28-2024"]
[Site "Chess.com"]
[Date "2024.05.28"]
[Round "1"]
[White "CristianS27"]
[Black "GroovyKettle"]
[Result "0-1"]
[WhiteElo "2520"]
[BlackElo "2974"]
[TimeControl "180+1"]
[EndTime "8:06:43 PDT"]
[Termination "GroovyKettle won on time"]

1. e4 {[%clk 0:02:24.4]} 1... b6 {[%clk 0:02:58.2]} 2. d4 {[%clk 0:02:23.9]}
2... Bb7 {[%clk 0:02:58.5]} 3. Nc3 {[%clk 0:02:24.8]} 3... e6 {[%clk 0:02:58.8]}
4. a3 {[%clk 0:02:25.4]} 4... Nf6 {[%clk 0:02:58.3]} 5. Bd3 {[%clk 0:02:24.8]}
5... d5 {[%clk 0:02:58.5]} 6. e5 {[%clk 0:02:21]} 6... Nfd7 {[%clk 0:02:59.3]}
7. Nce2 {[%clk 0:02:20.1]} 7... f6 {[%clk 0:02:55.8]} 8. Nf4 {[%clk 0:02:13]}
8... Qe7 {[%clk 0:02:43.7]} 9. Nf3 {[%clk 0:02:00.9]} 9... Nc6 {[%clk
0:02:36.8]} 10. O-O {[%clk 0:01:50.9]} 10... fxe5 {[%clk 0:02:36.4]} 11. dxe5
{[%clk 0:01:44.9]} 11... O-O-O {[%clk 0:02:36]} 12. Re1 {[%clk 0:01:40.7]} 12...
g5 {[%clk 0:02:33.9]} 13. Nxg5 {[%clk 0:00:57.4]} 13... Qxg5 {[%clk 0:02:34]}
14. Nxe6 {[%clk 0:00:56.4]} 14... Qe7 {[%clk 0:02:32.3]} 15. Nxd8 {[%clk
0:00:55.1]} 15... Nxd8 {[%clk 0:02:29.8]} 16. Qg4 {[%clk 0:00:50.9]} 16... h5
{[%clk 0:02:28.7]} 17. Qh3 {[%clk 0:00:41.1]} 17... Kb8 {[%clk 0:02:28.5]} 18.
e6 {[%clk 0:00:27.8]} 18... Nc5 {[%clk 0:02:28.1]} 19. Bf5 {[%clk 0:00:23.3]}
19... Bg7 {[%clk 0:02:24.2]} 20. Rb1 {[%clk 0:00:21.5]} 20... Bc8 {[%clk
0:02:12.2]} 21. Bf4 {[%clk 0:00:19.9]} 21... Ncxe6 {[%clk 0:02:08.3]} 22. Rbd1
{[%clk 0:00:16.8]} 22... Nxf4 {[%clk 0:02:05.7]} 23. Rxe7 {[%clk 0:00:15.7]}
23... Nxh3+ {[%clk 0:02:06]} 24. Bxh3 {[%clk 0:00:15.7]} 24... Bf6 {[%clk
0:02:01.1]} 25. Re3 {[%clk 0:00:15]} 25... Bb7 {[%clk 0:01:49.2]} 26. c3 {[%clk
0:00:13]} 26... a5 {[%clk 0:01:48.7]} 27. g3 {[%clk 0:00:10]} 27... Bc6 {[%clk
0:01:37.6]} 28. Bg2 {[%clk 0:00:10]} 28... d4 {[%clk 0:01:35.4]} 29. cxd4 {[%clk
0:00:09.8]} 29... Bxg2 {[%clk 0:01:35.1]} 30. Kxg2 {[%clk 0:00:10.7]} 30... Nb7
{[%clk 0:01:33.6]} 31. Re6 {[%clk 0:00:09.3]} 31... Rf8 {[%clk 0:01:33.1]} 32.
Rde1 {[%clk 0:00:07.3]} 32... Nd6 {[%clk 0:01:33.5]} 33. b3 {[%clk 0:00:02.7]}
33... Bxd4 {[%clk 0:01:33.3]} 34. Rh6 {[%clk 0:00:03]} 34... Rxf2+ {[%clk
0:01:33.3]} 35. Kh3 {[%clk 0:00:02.8]} 35... Rf3 {[%clk 0:01:30.3]} 36. Rxh5
{[%clk 0:00:02.5]} 36... Rxb3 {[%clk 0:01:30.6]} 37. Rh7 {[%clk 0:00:01.7]}
37... Rxa3 {[%clk 0:01:30.1]} 38. Ree7 {[%clk 0:00:01.9]} 38... Rc3 {[%clk
0:01:30.5]} 39. Kg4 {[%clk 0:00:02]} 39... a4 {[%clk 0:01:30.5]} 40. h4 {[%clk
0:00:01.9]} 40... a3 {[%clk 0:01:31]} 41. Re2 {[%clk 0:00:01.5]} 41... b5 {[%clk
0:01:28.6]} 42. h5 {[%clk 0:00:01.9]} 42... b4 {[%clk 0:01:28.7]} 43. h6 {[%clk
0:00:02.4]} 43... Rc1 {[%clk 0:01:19.5]} 44. Rg7 {[%clk 0:00:01.8]} 44... Rh1
{[%clk 0:01:19.3]} 45. Rg8+ {[%clk 0:00:01.4]} 45... Kb7 {[%clk 0:01:19.5]} 46.
Kg5 {[%clk 0:00:02]} 46... b3 {[%clk 0:01:19.3]} 47. g4 {[%clk 0:00:01]} 47...
b2 {[%clk 0:01:19.4]} 0-1

[Event "Early-Titled-Tuesday-Blitz-May-28-2024"]
[Site "Chess.com"]
[Date "2024.05.28"]
[Round "1"]
[White "PonyQueen07"]
[Black "manmanlai1"]
[Result "0-1"]
[WhiteElo "2044"]
[BlackElo "2567"]
[TimeControl "180+1"]
[EndTime "8:06:43 PDT"]
[Termination "manmanlai1 won on time"]

1. c4 {[%clk 0:03:00.9]} 1... e6 {[%clk 0:02:55.7]} 2. e4 {[%clk 0:03:00.6]}
2... c5 {[%clk 0:02:54.9]} 3. Nc3 {[%clk 0:03:00.4]} 3... Nc6 {[%clk 0:02:55]}
4. Nf3 {[%clk 0:03:00]} 4... a6 {[%clk 0:02:54.9]} 5. d3 {[%clk 0:02:59.4]} 5...
Qc7 {[%clk 0:02:55.3]} 6. Be3 {[%clk 0:02:59.1]} 6... Rb8 {[%clk 0:02:53.1]} 7.
a4 {[%clk 0:02:57.4]} 7... d6 {[%clk 0:02:50.1]} 8. Be2 {[%clk 0:02:56.3]} 8...
Nf6 {[%clk 0:02:50.6]} 9. O-O {[%clk 0:02:55.7]} 9... Be7 {[%clk 0:02:51.3]} 10.
d4 {[%clk 0:02:50.3]} 10... cxd4 {[%clk 0:02:50.4]} 11. Nxd4 {[%clk 0:02:50.1]}
11... O-O {[%clk 0:02:45.3]} 12. Nxc6 {[%clk 0:02:43.1]} 12... bxc6 {[%clk
0:02:44.8]} 13. b3 {[%clk 0:02:37.8]} 13... c5 {[%clk 0:02:45.2]} 14. f4 {[%clk
0:02:33]} 14... Rd8 {[%clk 0:02:44.9]} 15. Qc2 {[%clk 0:02:13.4]} 15... Bb7
{[%clk 0:02:42.3]} 16. Bd3 {[%clk 0:02:09.8]} 16... Bc6 {[%clk 0:02:40]} 17. Kh1
{[%clk 0:02:02.2]} 17... h6 {[%clk 0:02:35]} 18. e5 {[%clk 0:01:56.5]} 18...
dxe5 {[%clk 0:02:32.7]} 19. fxe5 {[%clk 0:01:56.4]} 19... Qxe5 {[%clk
0:02:33.1]} 20. Bf4 {[%clk 0:01:56.6]} 20... Qh5 {[%clk 0:02:13.2]} 21. Be2
{[%clk 0:01:31.5]} 21... Qh4 {[%clk 0:01:58.7]} 22. Bxb8 {[%clk 0:01:28.8]}
22... Rxb8 {[%clk 0:01:56]} 23. Bf3 {[%clk 0:01:28.7]} 23... Ng4 {[%clk
0:01:25.1]} 24. Bxg4 {[%clk 0:01:01.9]} 24... Qxg4 {[%clk 0:01:26]} 25. Rg1
{[%clk 0:00:18.5]} 25... Bf6 {[%clk 0:01:23.9]} 26. Rab1 {[%clk 0:00:14.3]}
26... Bd4 {[%clk 0:01:21.1]} 27. Ne2 {[%clk 0:00:05]} 27... Bxg1 {[%clk
0:01:16.3]} 28. Rxg1 {[%clk 0:00:03.7]} 28... Rd8 {[%clk 0:01:16]} 29. Ng3
{[%clk 0:00:01.3]} 29... h5 {[%clk 0:01:10.1]} 30. Qe2 {[%clk 0:00:01.2]} 30...
Rd4 {[%clk 0:00:55.1]} 31. Qxg4 {[%clk 0:00:01.1]} 31... hxg4 {[%clk 0:00:55.3]}
32. h3 {[%clk 0:00:01]} 32... gxh3 {[%clk 0:00:54.5]} 33. Ne2 {[%clk 0:00:01.2]}
33... Re4 {[%clk 0:00:43.8]} 34. Ng3 {[%clk 0:00:01]} 34... Rh4 {[%clk
0:00:42.7]} 0-1

[Event "Early-Titled-Tuesday-Blitz-May-28-2024"]
[Site "Chess.com"]
[Date "2024.05.28"]
[Round "1"]
[White "SimplyDevina"]
[Black "Phuzer"]
[Result "0-1"]
[WhiteElo "2311"]
[BlackElo "2630"]
[TimeControl "180+1"]
[EndTime "8:06:44 PDT"]
[Termination "Phuzer won by resignation"]

1. d4 {[%clk 0:03:00.9]} 1... d5 {[%clk 0:02:56.5]} 2. c4 {[%clk 0:03:00.9]}
2... c6 {[%clk 0:02:56.5]} 3. Nc3 {[%clk 0:02:59]} 3... dxc4 {[%clk 0:02:55.7]}
4. a4 {[%clk 0:02:56.7]} 4... e5 {[%clk 0:02:55.1]} 5. e3 {[%clk 0:02:48.1]}
5... exd4 {[%clk 0:02:54.9]} 6. exd4 {[%clk 0:02:47]} 6... Be6 {[%clk
0:02:55.1]} 7. Nf3 {[%clk 0:02:44.6]} 7... Bb4 {[%clk 0:02:55.2]} 8. Ne5 {[%clk
0:02:41.1]} 8... Qe7 {[%clk 0:02:55.4]} 9. Be2 {[%clk 0:02:37.6]} 9... Nd7
{[%clk 0:02:55.6]} 10. O-O {[%clk 0:02:30.6]} 10... Nxe5 {[%clk 0:02:55.7]} 11.
dxe5 {[%clk 0:02:30.8]} 11... Rd8 {[%clk 0:02:52.8]} 12. Qc2 {[%clk 0:02:29.5]}
12... Qc7 {[%clk 0:02:52.8]} 13. Bf4 {[%clk 0:02:16.9]} 13... Ne7 {[%clk
0:02:52.8]} 14. Na2 {[%clk 0:02:10.4]} 14... Bc5 {[%clk 0:02:28.9]} 15. Bxc4
{[%clk 0:02:06.7]} 15... Bxc4 {[%clk 0:02:29.4]} 16. Qxc4 {[%clk 0:02:03.4]}
16... Rd4 {[%clk 0:02:25]} 17. Qxc5 {[%clk 0:02:02.8]} 17... Rxf4 {[%clk
0:02:25.2]} 18. Rad1 {[%clk 0:01:46.2]} 18... O-O {[%clk 0:02:23.1]} 19. Nc3
{[%clk 0:01:44.4]} 19... Ng6 {[%clk 0:02:19.1]} 20. Rfe1 {[%clk 0:01:37.3]}
20... b6 {[%clk 0:02:09.7]} 21. Qd6 {[%clk 0:01:20.1]} 21... Qxd6 {[%clk
0:01:58.9]} 22. exd6 {[%clk 0:01:14.3]} 22... Rd8 {[%clk 0:01:59]} 23. d7 {[%clk
0:01:10.9]} 23... Kf8 {[%clk 0:01:59.2]} 24. Rd6 {[%clk 0:01:07.6]} 24... Rf6
{[%clk 0:01:57.4]} 25. Ne4 {[%clk 0:00:59.9]} 25... Rxd6 {[%clk 0:01:51.7]} 26.
Nxd6 {[%clk 0:01:00.8]} 26... Ne7 {[%clk 0:01:51.8]} 27. Nc8 {[%clk 0:00:34.5]}
27... Rxd7 {[%clk 0:01:50]} 28. Nxe7 {[%clk 0:00:30.8]} 28... Rxe7 {[%clk
0:01:50.9]} 29. Rc1 {[%clk 0:00:31.3]} 29... c5 {[%clk 0:01:46.8]} 30. Kf1
{[%clk 0:00:30.2]} 30... Rd7 {[%clk 0:01:46.6]} 31. Rc2 {[%clk 0:00:30]} 31...
Rd4 {[%clk 0:01:45]} 32. b3 {[%clk 0:00:30.1]} 32... Ke7 {[%clk 0:01:44.3]} 33.
Ke2 {[%clk 0:00:30.5]} 33... Kd6 {[%clk 0:01:42.3]} 34. Ke3 {[%clk 0:00:31]}
34... a5 {[%clk 0:01:40.8]} 35. f3 {[%clk 0:00:30.8]} 35... f5 {[%clk
0:01:40.5]} 36. g3 {[%clk 0:00:31]} 36... g5 {[%clk 0:01:39.6]} 37. f4 {[%clk
0:00:28.5]} 37... Re4+ {[%clk 0:01:37.4]} 38. Kf3 {[%clk 0:00:28.5]} 38... gxf4
{[%clk 0:01:28.5]} 39. gxf4 {[%clk 0:00:28.6]} 39... Rb4 {[%clk 0:01:29.1]} 40.
Rd2+ {[%clk 0:00:26.9]} 40... Ke6 {[%clk 0:01:25.9]} 41. Re2+ {[%clk 0:00:25]}
41... Kf6 {[%clk 0:01:24.5]} 42. Re3 {[%clk 0:00:23.3]} 42... h5 {[%clk
0:01:11.9]} 43. Kg3 {[%clk 0:00:19.3]} 43... h4+ {[%clk 0:01:10.9]} 44. Kf3
{[%clk 0:00:16.8]} 44... Rd4 {[%clk 0:01:10.3]} 45. Rc3 {[%clk 0:00:14.2]} 45...
Rd2 {[%clk 0:01:10.5]} 46. Re3 {[%clk 0:00:08.8]} 46... Rxh2 {[%clk 0:01:09.9]}
47. Re8 {[%clk 0:00:09.7]} 47... Rh3+ {[%clk 0:01:09.4]} 48. Kg2 {[%clk
0:00:10.3]} 48... Rxb3 {[%clk 0:01:10]} 49. Rh8 {[%clk 0:00:09.2]} 49... h3+
{[%clk 0:01:08.9]} 50. Kh2 {[%clk 0:00:09.3]} 50... Ke6 {[%clk 0:01:07.3]} 0-1

[Event "Early-Titled-Tuesday-Blitz-May-28-2024"]
[Site "Chess.com"]
[Date "2024.05.28"]
[Round "1"]
[White "JaloliddinIlkhomi"]
[Black "DvaHrasta"]
[Result "1-0"]
[WhiteElo "2776"]
[BlackElo "2433"]
[TimeControl "180+1"]
[EndTime "8:06:45 PDT"]
[Termination "JaloliddinIlkhomi won on time"]

1. Nf3 {[%clk 0:03:00.1]} 1... Nf6 {[%clk 0:02:58.4]} 2. d4 {[%clk 0:03:00.1]}
2... e6 {[%clk 0:02:57.3]} 3. Bf4 {[%clk 0:03:00.2]} 3... d5 {[%clk 0:02:56]} 4.
e3 {[%clk 0:03:00.5]} 4... Bd6 {[%clk 0:02:55.2]} 5. Bg3 {[%clk 0:03:01.1]} 5...
O-O {[%clk 0:02:54.6]} 6. Nbd2 {[%clk 0:02:59.8]} 6... b6 {[%clk 0:02:54.5]} 7.
Bd3 {[%clk 0:03:00]} 7... c5 {[%clk 0:02:51.5]} 8. c3 {[%clk 0:03:00.1]} 8...
Ba6 {[%clk 0:02:51.4]} 9. Bxa6 {[%clk 0:02:59.5]} 9... Nxa6 {[%clk 0:02:51.4]}
10. Ne5 {[%clk 0:03:00.4]} 10... Bxe5 {[%clk 0:02:49.9]} 11. Bxe5 {[%clk
0:03:00.6]} 11... Nd7 {[%clk 0:02:44.5]} 12. Bg3 {[%clk 0:03:00.6]} 12... Re8
{[%clk 0:02:43.2]} 13. O-O {[%clk 0:03:00.9]} 13... e5 {[%clk 0:02:38]} 14. dxe5
{[%clk 0:03:01.1]} 14... Nxe5 {[%clk 0:02:35]} 15. Nf3 {[%clk 0:03:01.5]} 15...
Ng6 {[%clk 0:02:14.8]} 16. Qd3 {[%clk 0:03:00.3]} 16... c4 {[%clk 0:02:09.3]}
17. Qd4 {[%clk 0:02:57.1]} 17... Re4 {[%clk 0:01:57.6]} 18. Qd2 {[%clk
0:02:54.9]} 18... Nc5 {[%clk 0:01:54.8]} 19. Nd4 {[%clk 0:02:52.6]} 19... Nd3
{[%clk 0:01:48.6]} 20. Ne2 {[%clk 0:02:52.1]} 20... f5 {[%clk 0:01:41.1]} 21.
Rad1 {[%clk 0:02:51.4]} 21... Qd7 {[%clk 0:01:31.1]} 22. Nc1 {[%clk 0:02:50.4]}
22... f4 {[%clk 0:01:24.2]} 23. exf4 {[%clk 0:02:47.1]} 23... Ngxf4 {[%clk
0:01:20]} 24. f3 {[%clk 0:02:38.2]} 24... Nxc1 {[%clk 0:00:57.4]} 25. fxe4
{[%clk 0:02:35.7]} 25... Nce2+ {[%clk 0:00:51.7]} 26. Kh1 {[%clk 0:02:33.4]}
26... Nxg3+ {[%clk 0:00:51.4]} 27. hxg3 {[%clk 0:02:34.3]} 27... Nd3 {[%clk
0:00:44.9]} 28. Qe3 {[%clk 0:02:15.5]} 28... Re8 {[%clk 0:00:38.1]} 29. Rf4
{[%clk 0:01:47.2]} 29... dxe4 {[%clk 0:00:36.7]} 30. Rff1 {[%clk 0:01:32.6]}
30... Qd5 {[%clk 0:00:33.6]} 31. Kg1 {[%clk 0:01:31.5]} 31... h6 {[%clk
0:00:32.9]} 32. b3 {[%clk 0:01:31.7]} 32... b5 {[%clk 0:00:28.6]} 33. bxc4
{[%clk 0:01:30.7]} 33... bxc4 {[%clk 0:00:27.7]} 34. Rd2 {[%clk 0:01:28.8]}
34... a5 {[%clk 0:00:26.1]} 35. Re2 {[%clk 0:01:29.1]} 35... a4 {[%clk
0:00:25.3]} 36. Qa7 {[%clk 0:01:29.2]} 36... Qe5 {[%clk 0:00:19.1]} 37. Qf7+
{[%clk 0:01:28.3]} 37... Kh8 {[%clk 0:00:19.1]} 38. Qg6 {[%clk 0:01:24.5]} 38...
Qc5+ {[%clk 0:00:17.6]} 39. Kh2 {[%clk 0:01:24.6]} 39... Qe5 {[%clk 0:00:15.1]}
40. Rf7 {[%clk 0:01:21.2]} 40... e3 {[%clk 0:00:14.3]} 41. Rxg7 {[%clk
0:01:20.3]} 41... Qxg7 {[%clk 0:00:12.9]} 42. Qxe8+ {[%clk 0:01:20.7]} 42... Kh7
{[%clk 0:00:13.2]} 43. Qxe3 {[%clk 0:01:20.7]} 43... Qxc3 {[%clk 0:00:12.1]} 44.
Qe4+ {[%clk 0:01:21.4]} 44... Kg7 {[%clk 0:00:10.5]} 45. Qe7+ {[%clk 0:01:21.6]}
45... Kg6 {[%clk 0:00:07]} 46. Re6+ {[%clk 0:01:21.8]} 1-0

[Event "Early-Titled-Tuesday-Blitz-May-28-2024"]
[Site "Chess.com"]
[Date "2024.05.28"]
[Round "1"]
[White "Keithonsky"]
[Black "carloseduar100"]
[Result "1-0"]
[WhiteElo "2629"]
[BlackElo "2311"]
[TimeControl "180+1"]
[EndTime "8:06:45 PDT"]
[Termination "Keithonsky won by resignation"]

1. d4 {[%clk 0:03:00.9]} 1... d5 {[%clk 0:02:58.2]} 2. c4 {[%clk 0:03:00.9]}
2... e5 {[%clk 0:02:58.3]} 3. dxe5 {[%clk 0:02:59.5]} 3... d4 {[%clk 0:02:59.2]}
4. Nf3 {[%clk 0:02:59]} 4... Nc6 {[%clk 0:02:59.5]} 5. a3 {[%clk 0:02:58.8]}
5... Nge7 {[%clk 0:02:58.9]} 6. Nbd2 {[%clk 0:02:50.1]} 6... Ng6 {[%clk
0:02:57.2]} 7. b4 {[%clk 0:02:50.6]} 7... Ncxe5 {[%clk 0:02:37]} 8. Bb2 {[%clk
0:02:49.2]} 8... Nxf3+ {[%clk 0:02:32.3]} 9. Nxf3 {[%clk 0:02:45.3]} 9... a5
{[%clk 0:02:22.2]} 10. c5 {[%clk 0:02:33.7]} 10... b6 {[%clk 0:01:52.7]} 11.
Qxd4 {[%clk 0:02:28.1]} 11... Qxd4 {[%clk 0:01:50.7]} 12. Nxd4 {[%clk 0:02:24]}
12... axb4 {[%clk 0:01:49.7]} 13. Nb5 {[%clk 0:02:17.6]} 13... Kd7 {[%clk
0:01:26.3]} 14. cxb6 {[%clk 0:02:12.2]} 14... bxa3 {[%clk 0:01:21.3]} 15. Bxa3
{[%clk 0:01:35]} 15... Bb4+ {[%clk 0:01:13]} 16. Kd1 {[%clk 0:01:31.3]} 16...
cxb6 {[%clk 0:01:07.9]} 17. Kc2 {[%clk 0:01:23.9]} 17... Bxa3 {[%clk 0:01:06.9]}
18. Nxa3 {[%clk 0:01:18.9]} 18... Ba6 {[%clk 0:01:00.9]} 19. g3 {[%clk 0:01:16]}
19... Rhc8+ {[%clk 0:00:58.7]} 20. Kb2 {[%clk 0:01:16.5]} 20... Bb7 {[%clk
0:00:58.4]} 21. Bh3+ {[%clk 0:01:16.1]} 21... Ke7 {[%clk 0:00:55.3]} 22. Rhc1
{[%clk 0:01:15]} 22... Rxc1 {[%clk 0:00:54.6]} 23. Rxc1 {[%clk 0:01:15.9]} 23...
Kd6 {[%clk 0:00:49.3]} 24. Nb5+ {[%clk 0:01:15]} 24... Ke5 {[%clk 0:00:47.7]}
25. f4+ {[%clk 0:01:13.9]} 25... Kf6 {[%clk 0:00:41.4]} 26. Nd6 {[%clk
0:01:06.6]} 26... Bd5 {[%clk 0:00:39.4]} 27. e4 {[%clk 0:01:05.1]} 27... Ra2+
{[%clk 0:00:38.8]} 28. Kb1 {[%clk 0:00:52.8]} 28... Rxh2 {[%clk 0:00:39.7]} 29.
Bg4 {[%clk 0:00:51.9]} 29... Be6 {[%clk 0:00:34]} 30. f5 {[%clk 0:00:30.6]}
30... Ne5 {[%clk 0:00:32]} 31. fxe6 {[%clk 0:00:29.7]} 31... Nxg4 {[%clk
0:00:31.8]} 32. exf7 {[%clk 0:00:29.1]} 32... Ke7 {[%clk 0:00:31.1]} 33. Rc7+
{[%clk 0:00:28.9]} 33... Kxd6 {[%clk 0:00:29.4]} 34. f8=Q+ {[%clk 0:00:29.3]}
34... Kxc7 {[%clk 0:00:30]} 35. Qxg7+ {[%clk 0:00:30]} 35... Kc6 {[%clk
0:00:29.6]} 36. Qxg4 {[%clk 0:00:30.6]} 1-0

[Event "Early-Titled-Tuesday-Blitz-May-28-2024"]
[Site "Chess.com"]
[Date "2024.05.28"]
[Round "1"]
[White "ccccvhhhj"]
[Black "AradNazari"]
[Result "0-1"]
[WhiteElo "2456"]
[BlackElo "2806"]
[TimeControl "180+1"]
[EndTime "8:06:47 PDT"]
[Termination "AradNazari won by checkmate"]

1. e4 {[%clk 0:03:00.9]} 1... c5 {[%clk 0:02:54]} 2. Nf3 {[%clk 0:03:00.5]} 2...
d6 {[%clk 0:02:54.6]} 3. d4 {[%clk 0:03:00.6]} 3... cxd4 {[%clk 0:02:55.3]} 4.
Nxd4 {[%clk 0:03:01.5]} 4... Nf6 {[%clk 0:02:55.9]} 5. Nc3 {[%clk 0:03:02.1]}
5... a6 {[%clk 0:02:56.6]} 6. Rg1 {[%clk 0:03:01.5]} 6... e5 {[%clk 0:02:56.5]}
7. Nb3 {[%clk 0:03:01.6]} 7... h5 {[%clk 0:02:55.9]} 8. h3 {[%clk 0:03:01.3]}
8... h4 {[%clk 0:02:51.5]} 9. Be3 {[%clk 0:03:00.9]} 9... Be6 {[%clk 0:02:51.5]}
10. Qd2 {[%clk 0:03:00.8]} 10... Nbd7 {[%clk 0:02:51.5]} 11. O-O-O {[%clk
0:03:00.8]} 11... Rc8 {[%clk 0:02:51.4]} 12. f3 {[%clk 0:02:58.1]} 12... Be7
{[%clk 0:02:48.6]} 13. Kb1 {[%clk 0:02:57.8]} 13... b5 {[%clk 0:02:47.3]} 14.
Nd5 {[%clk 0:02:48.6]} 14... Bxd5 {[%clk 0:02:38]} 15. exd5 {[%clk 0:02:49.5]}
15... Nb6 {[%clk 0:02:38.6]} 16. Bxb6 {[%clk 0:02:33.3]} 16... Qxb6 {[%clk
0:02:39.5]} 17. Bd3 {[%clk 0:02:19.5]} 17... b4 {[%clk 0:02:29.3]} 18. Qe2
{[%clk 0:02:02.9]} 18... a5 {[%clk 0:02:26.6]} 19. Bb5+ {[%clk 0:02:02.3]} 19...
Kf8 {[%clk 0:02:27]} 20. Ba4 {[%clk 0:01:56.7]} 20... Nh5 {[%clk 0:02:15.2]} 21.
Qe4 {[%clk 0:01:35.5]} 21... g6 {[%clk 0:02:01.3]} 22. Rge1 {[%clk 0:01:06]}
22... Nf4 {[%clk 0:01:56]} 23. Rd2 {[%clk 0:00:59.8]} 23... Bg5 {[%clk
0:01:34.6]} 24. Bc6 {[%clk 0:00:32.2]} 24... a4 {[%clk 0:01:25.4]} 25. Bxa4
{[%clk 0:00:28.2]} 25... f5 {[%clk 0:01:26]} 26. Qe3 {[%clk 0:00:22.9]} 26...
Qxe3 {[%clk 0:01:25.9]} 27. Rxe3 {[%clk 0:00:23.8]} 27... Nxh3 {[%clk
0:01:24.1]} 28. Ree2 {[%clk 0:00:22.4]} 28... Ng1 {[%clk 0:01:18.1]} 29. Rf2
{[%clk 0:00:14.5]} 29... h3 {[%clk 0:01:16.1]} 30. gxh3 {[%clk 0:00:14.5]} 30...
Bxd2 {[%clk 0:01:16]} 31. Nxd2 {[%clk 0:00:11.1]} 31... Nxh3 {[%clk 0:01:16.5]}
32. Rg2 {[%clk 0:00:11.3]} 32... Kf7 {[%clk 0:01:15.8]} 33. Bc6 {[%clk 0:00:09]}
33... Nf4 {[%clk 0:01:13.6]} 34. Rg1 {[%clk 0:00:09.5]} 34... Rh2 {[%clk
0:01:12.7]} 35. Nb3 {[%clk 0:00:10]} 35... Kf6 {[%clk 0:01:10.2]} 36. a3 {[%clk
0:00:10.4]} 36... bxa3 {[%clk 0:01:04.4]} 37. bxa3 {[%clk 0:00:11.3]} 37... Ne2
{[%clk 0:01:04.2]} 38. Re1 {[%clk 0:00:04.7]} 38... Rb8 {[%clk 0:01:03.8]} 39.
Kb2 {[%clk 0:00:03.1]} 39... Nd4 {[%clk 0:01:03.5]} 40. a4 {[%clk 0:00:01.9]}
40... Rxb3+ {[%clk 0:01:03.7]} 41. Ka2 {[%clk 0:00:01.7]} 41... Rxc2+ {[%clk
0:01:04.2]} 42. Ka1 {[%clk 0:00:01.8]} 42... Rbb2 {[%clk 0:01:01.8]} 43. a5
{[%clk 0:00:01.2]} 43... Nb3# {[%clk 0:01:02.1]} 0-1

[Event "Early-Titled-Tuesday-Blitz-May-28-2024"]
[Site "Chess.com"]
[Date "2024.05.28"]
[Round "1"]
[White "rezamahdavi2008"]
[Black "Squirlolz"]
[Result "1-0"]
[WhiteElo "3001"]
[BlackElo "2526"]
[TimeControl "180+1"]
[EndTime "8:06:49 PDT"]
[Termination "rezamahdavi2008 won by checkmate"]

1. e4 {[%clk 0:02:55.2]} 1... e6 {[%clk 0:02:59.8]} 2. d4 {[%clk 0:02:55.2]}
2... d5 {[%clk 0:03:00.7]} 3. e5 {[%clk 0:02:56]} 3... c5 {[%clk 0:03:00]} 4. c3
{[%clk 0:02:56.7]} 4... Ne7 {[%clk 0:03:00.4]} 5. Nf3 {[%clk 0:02:56.5]} 5...
Nec6 {[%clk 0:03:00.9]} 6. Be2 {[%clk 0:02:45.9]} 6... a5 {[%clk 0:03:00.4]} 7.
O-O {[%clk 0:02:45.3]} 7... b6 {[%clk 0:03:00.7]} 8. Na3 {[%clk 0:02:41.5]} 8...
Ba6 {[%clk 0:03:00.9]} 9. Nb5 {[%clk 0:02:41.7]} 9... Be7 {[%clk 0:02:59.5]} 10.
a4 {[%clk 0:02:42.2]} 10... O-O {[%clk 0:02:59.2]} 11. Re1 {[%clk 0:02:41.1]}
11... cxd4 {[%clk 0:02:58.7]} 12. cxd4 {[%clk 0:02:42]} 12... Nb4 {[%clk
0:02:59.1]} 13. Bf4 {[%clk 0:02:39.6]} 13... Bxb5 {[%clk 0:02:58.3]} 14. Bxb5
{[%clk 0:02:40.5]} 14... N8c6 {[%clk 0:02:57.6]} 15. Rc1 {[%clk 0:02:38.8]}
15... Rc8 {[%clk 0:02:57.5]} 16. Qd2 {[%clk 0:02:37.7]} 16... Na7 {[%clk
0:02:55.1]} 17. Be2 {[%clk 0:02:34.5]} 17... Qd7 {[%clk 0:02:51.3]} 18. b3
{[%clk 0:02:28.2]} 18... Rxc1 {[%clk 0:02:51.4]} 19. Rxc1 {[%clk 0:02:29.1]}
19... Rc8 {[%clk 0:02:51.7]} 20. h4 {[%clk 0:02:25]} 20... Rxc1+ {[%clk
0:02:50.3]} 21. Qxc1 {[%clk 0:02:24.1]} 21... Qc6 {[%clk 0:02:51.2]} 22. Qxc6
{[%clk 0:02:23]} 22... Naxc6 {[%clk 0:02:50.5]} 23. Bb5 {[%clk 0:02:21.7]} 23...
Kf8 {[%clk 0:02:39.3]} 24. Bd2 {[%clk 0:02:18.1]} 24... Na7 {[%clk 0:02:36.7]}
25. Be2 {[%clk 0:02:07.3]} 25... Nc2 {[%clk 0:02:21.4]} 26. Bd3 {[%clk
0:02:04.2]} 26... Nb4 {[%clk 0:02:19.9]} 27. Bxh7 {[%clk 0:02:03.2]} 27... g6
{[%clk 0:02:15.6]} 28. Bh6+ {[%clk 0:02:01.4]} 28... Ke8 {[%clk 0:02:16.1]} 29.
g4 {[%clk 0:01:59.6]} 29... Bf8 {[%clk 0:02:12.2]} 30. Bd2 {[%clk 0:01:53.8]}
30... Nc2 {[%clk 0:02:05]} 31. h5 {[%clk 0:01:52.4]} 31... Na1 {[%clk
0:02:05.4]} 32. h6 {[%clk 0:01:22]} 32... Nxb3 {[%clk 0:01:51.3]} 33. Be3 {[%clk
0:01:22.4]} 33... b5 {[%clk 0:01:44]} 34. Bg8 {[%clk 0:01:19.2]} 34... bxa4
{[%clk 0:01:40.9]} 35. h7 {[%clk 0:01:18.3]} 35... Bg7 {[%clk 0:01:41]} 36. Bg5
{[%clk 0:00:59.1]} 36... a3 {[%clk 0:01:35.6]} 37. Bf6 {[%clk 0:00:59.1]} 37...
Kf8 {[%clk 0:01:31.5]} 38. Bxg7+ {[%clk 0:00:58.8]} 38... Kxg7 {[%clk
0:01:31.6]} 39. Ng5 {[%clk 0:00:59.7]} 39... a2 {[%clk 0:01:29.8]} 40. Nxf7
{[%clk 0:01:00.2]} 40... a1=Q+ {[%clk 0:01:29.9]} 41. Kg2 {[%clk 0:01:01.1]}
41... Qxd4 {[%clk 0:01:17.1]} 42. h8=Q+ {[%clk 0:01:00.3]} 42... Kf8 {[%clk
0:01:18]} 43. Nh6 {[%clk 0:00:27.3]} 43... Qe4+ {[%clk 0:01:11.1]} 44. Kg3
{[%clk 0:00:27.6]} 44... Nd4 {[%clk 0:00:41]} 45. Bf7+ {[%clk 0:00:25.9]} 45...
Ke7 {[%clk 0:00:38.7]} 46. Qe8# {[%clk 0:00:26.8]} 1-0